Cogmind - Beta 13 @@@ ROGUE MODE // 2024.07.05 @ 18:45:08 Player: Cinder Result: Self-destructed Performance ------------- Evolutions (2) 1000 Regions Visited (4) 800 Robots Destroyed (11) 55 Value Destroyed (225) 225 Prototype IDs (0) 0 Alien Tech Used (0) 0 Bonus (93) 93 TOTAL SCORE: 2173 Bonus ------- Follower Combat Kills 93 Cogmind --------- Core Integrity 413/550 Matter 230/300 Energy 250/250 System Corruption 0% Temperature Danger (402) Movement Walking (330) Ox3 Location -8/Materials Parts ------- > --- POWER (1) -------- Ion Engine > --- PROPULSION (4) --- Aluminum Leg > --- UTILITY (3) ------ Large Storage Unit Sensor Array Signal Interpreter > --- WEAPON (3) ------- Beam Cannon Minigun Minigun > --- INVENTORY (15) --- Ion Engine Makeshift Power Source Aluminum Leg Carbon-fiber Leg Improved Carbon-fiber Leg Improved Carbon-fiber Leg Improved Carbon-fiber Leg Improved Carbon-fiber Leg Improved Cooling System Advanced Targeting Computer High-powered Tractor Beam Beam Cannon Minigun Minigun Peak State ------------ > --- POWER ------------ Ion Engine > --- PROPULSION ------- Light Treads Light Treads Aluminum Leg Aluminum Leg > --- UTILITY ---------- Large Storage Unit Sensor Array Signal Interpreter > --- WEAPON ----------- Beam Cannon Beam Cannon Minigun > --- INVENTORY -------- Ion Engine Makeshift Power Source Aluminum Leg Improved Carbon-fiber Leg Improved Carbon-fiber Leg Improved Carbon-fiber Leg Improved Carbon-fiber Leg Improved Cooling System Launcher Guidance Computer High-powered Tractor Beam Beam Cannon Minigun Minigun Minigun [Rating: 17] Favorites ----------- Power Ion Engine Engine Ion Engine Propulsion Light Treads Treads Light Treads Leg Aluminum Leg Utility Sensor Array Device Sensor Array Storage Small Storage Unit Processor Signal Interpreter Weapon Beam Cannon Energy Gun Small Laser Energy Cannon Beam Cannon Ballistic Gun Assault Rifle Build | -11 -10 -10 -9 -8 ------- Run | Yrd Mat Min Mat Mat Slots Evolved 4 | . . . 2 2 Power . | . . . . . Propulsion 2 | . . . 2 . Utility 1 | . . . . 1 Weapon 1 | . . . . 1 Parts Attached 18 | 5 2 . 8 3 Power 2 | . . . 2 . Engine 2 | . . . 2 . Core . | . . . . . Reactor . | . . . . . Propulsion 6 | 2 . . 4 . Treads 3 | 2 . . 1 . Leg 3 | . . . 3 . Wheel . | . . . . . Hover . | . . . . . Flight . | . . . . . Utility 4 | 1 1 . 1 1 Device 1 | . 1 . . . Storage 2 | 1 . . 1 . Processor 1 | . . . . 1 Hackware . | . . . . . Protection . | . . . . . Artifact . | . . . . . Weapon 6 | 2 1 . 1 2 Energy Gun 1 | 1 . . . . Energy Cannon 2 | . 1 . . 1 Ballistic Gun 3 | 1 . . 1 1 Ballistic Cannon . | . . . . . Launcher . | . . . . . Special Weapon . | . . . . . Impact Weapon . | . . . . . Slashing Weapon . | . . . . . Piercing Weapon . | . . . . . Special Melee Weapon . | . . . . . Unidentified Prototypes . | . . . . . Parts Lost 4 | . . . . 4 Power . | . . . . . Propulsion 3 | . . . . 3 Utility . | . . . . . Weapon 1 | . . . . 1 Highest Loss Streak 4 | . . . . 4 To Critical Strikes . | . . . . . Average Slot Usage (%) 89 | . 77 85 99 99 Engine 4 | . . . 10 9 Treads 24 | . 28 28 22 17 Leg 8 | . . . 22 18 Device 10 | . 6 14 11 9 Storage 12 | . 14 14 11 9 Processor 2 | . . . . 9 Energy Cannon 13 | . 8 14 11 17 Ballistic Gun 12 | . 14 14 11 9 Naked Turns . | . . . . . Heaviest Build 35 | 8 11 11 32 35 Greatest Support 40 | 40 40 40 40 40 Greatest Overweight (x) 1 | . . . 1 . Average Overweight (x) . | . . . . . Largest Inventory Capacity 15 | 8 8 8 15 15 Average Capacity 10 | 7 8 8 11 15 Most Carried 15 | 6 8 8 10 15 Average Carried 9 | 3 6 8 7 14 Final Capacity 15 | 8 8 8 15 15 Final Carried 14 | 5 8 8 10 14 Class Distribution -------------------- 76% | Mutant 23% | Skirmisher Dominant Class ---------------- Mutant | -10/Materials Mutant | -10/Mines Mutant | -9/Materials Skirmisher | -8/Materials Resources | -11 -10 -10 -9 -8 ----------- Run | Yrd Mat Min Mat Mat Matter Collected 419 | 233 . 60 86 40 Remotely . | . . . . . Salvage Created 402 | . . 58 178 166 Parts 22 | . . 7 10 5 Haulers Intercepted . | . . . . . Recyclers Shooed 1 | . . . . 1 Parts Field Recycled . | . . . . . Retrieved Matter . | . . . . . Parts Self-Destructed . | . . . . . Prevented . | . . . . . Kills | -11 -10 -10 -9 -8 ------- Run | Yrd Mat Min Mat Mat Combat Hostiles Destroyed 7 | . . 4 . 3 Guns 2 | . . . . 2 Cannons 4 | . . 3 . 1 Classes Destroyed 6 | . . 2 2 2 Builder 1 | . . 1 . . Recycler 2 | . . . 2 . Watcher 1 | . . . 1 . Swarmer 4 | . . 4 . . Grunt 2 | . . . . 2 Sentry 1 | . . . . 1 Best Kill Streak 3 | . . 3 2 2 Combat Bots Only 3 | . . 3 . 2 Max Kills in Single Turn 2 | . . 1 2 1 Gunslinging . | . . . . . Exploded . | . . . . . Melee . | . . . . . Uniques/NPCs Destroyed . | . . . . . Combat | -11 -10 -10 -9 -8 -------- Run | Yrd Mat Min Mat Mat Hostile Shots Fired 100 | . 23 19 4 54 Missed 21 | . 6 4 1 10 Damage Taken 1000 | . 140 121 37 702 Core 189 | . 34 18 . 137 Absorbed by Shields . | . . . . . Core Remaining (%) 93 | 100 . 79 100 . Volleys Fired 36 | . . 10 2 24 Largest 3 | . . 2 2 3 Hottest 145 | . . 80 85 145 Shots Fired 71 | . . 20 4 47 Gun 37 | . . 10 2 25 Cannon 34 | . . 10 2 22 Launcher . | . . . . . Special . | . . . . . Kinetic 37 | . . 10 2 25 Thermal 34 | . . 10 2 22 Explosive . | . . . . . Electromagnetic . | . . . . . Robot Hit Streak 7 | . . 6 3 7 Robot Miss Streak 4 | . . 3 . 4 Penetration Max . | . . . . . Secondary Targets . | . . . . . Shots Hit Robots 40 | . . 10 2 28 Core Hits 14 | . . 2 3 9 Critical Kills 1 | . . 1 . . Critical Parts Destroyed . | . . . . . Critical Strikes 1 | . . 1 . . Meltdown 1 | . . 1 . . Melee Attacks . | . . . . . Impact . | . . . . . Slashing . | . . . . . Piercing . | . . . . . Sneak Attacks . | . . . . . Combat Hostiles . | . . . . . Follow-up Attacks . | . . . . . Damage Inflicted 748 | . 2 156 57 533 Guns 361 | . . 52 38 271 Cannons 382 | . . 103 17 262 Explosions . | . . . . . Melee . | . . . . . Ramming 5 | . 2 1 2 . Kinetic 361 | . . 52 38 271 Thermal 382 | . . 103 17 262 Explosive . | . . . . . Electromagnetic . | . . . . . Impact . | . . . . . Slashing . | . . . . . Piercing . | . . . . . Highest Corruption . | . . . . . Average Corruption . | . . . . . Corruption Purged . | . . . . . Corruption Blocked . | . . . . . Overload Shots . | . . . . . Overflow Damage 23 | . . 23 . . Projectiles 23 | . . 23 . . Explosions . | . . . . . Melee . | . . . . . Knockbacks . | . . . . . Impact . | . . . . . Kinetic . | . . . . . Secondary . | . . . . . Self-Inflicted Damage . | . . . . . Shots . | . . . . . Rammed 3 | . 2 . 1 . Targets Rammed 4 | . 2 1 1 . Kicked . | . . . . . Crushed 1 | . . 1 . . Highest Temperature 466 | . . 21 38 466 Average Temperature 188 | . . 9 24 274 Received Heat Transfer 438 | . . . 15 423 Effects 7 | . . . . 7 Shutdowns 1 | . . . . 1 Interference 3 | . . . . 3 Damage (minor) 1 | . . . . 1 Damage (major) 2 | . . . . 2 Siege Activations . | . . . . . Robots Corrupted . | . . . . . Combat Hostiles . | . . . . . Parts Fried . | . . . . . Impact Corruptions . | . . . . . Robots Melted 1 | . . 1 . . Combat Hostiles 1 | . . 1 . . Parts Melted 3 | . . 3 . . Heat Transferred 814 | . . 222 37 555 Parts Sabotaged . | . . . . . Parts Stolen . | . . . . . Parts Stripped . | . . . . . Power Chain Reactions . | . . . . . Alert | -11 -10 -10 -9 -8 ------- Run | Yrd Mat Min Mat Mat Peak Influence 190 | . 5 76 91 190 Initial 32 | . . 1 25 32 Average 34 | . 2 24 45 73 Maximum Alert Level . | . . . . . Low Security (%) 100 | 100 100 100 100 100 Level 1 . | . . . . . Level 2 . | . . . . . Level 3 . | . . . . . Level 4 . | . . . . . Level 5 . | . . . . . High Security . | . . . . . Max Security . | . . . . . Squads Dispatched 3 | . . . 1 2 Investigation 1 | . . . 1 . Extermination . | . . . . . Reinforcement 2 | . . . . 2 Assault . | . . . . . Garrison . | . . . . . Intercept . | . . . . . Searches Triggered . | . . . . . Construction Impeded . | . . . . . Haulers Reinforced . | . . . . . Active Scanning Responses . | . . . . . Cargo Convoy Interrupts . | . . . . . Stealth | -11 -10 -10 -9 -8 --------- Run | Yrd Mat Min Mat Mat Distress Signals 6 | . 2 . 1 3 Communications Jammed . | . . . . . Distress Signals . | . . . . . Times Spotted 28 | . 4 5 6 13 Peak Tracking Total 7 | . 7 2 3 7 Tactical Retreats 1 | . . 1 . . Traps | -11 -10 -10 -9 -8 ------- Run | Yrd Mat Min Mat Mat Traps Triggered . | . . . . . Indirectly . | . . . . . Trap Hack Attempts . | . . . . . Triggered . | . . . . . Disarmed . | . . . . . Reprogrammed . | . . . . . Reused . | . . . . . Traps Extracted . | . . . . . Installed . | . . . . . Triggered . | . . . . . Machines | -11 -10 -10 -9 -8 ---------- Run | Yrd Mat Min Mat Mat Machines Disabled 1 | . . . . 1 Max in Single Turn 1 | . . . . 1 Machines Repaired . | . . . . . Machines Dismantled . | . . . . . Machines Sabotaged . | . . . . . Overloaded Fab Kills . | . . . . . Hacking | -11 -10 -10 -9 -8 --------- Run | Yrd Mat Min Mat Mat Machines Accessed 5 | . 3 . 2 . Terminals 2 | . 1 . 1 . Fabricators . | . . . . . Repair Stations . | . . . . . Recycling Units 3 | . 2 . 1 . Scanalyzers . | . . . . . Garrison Access . | . . . . . Total Hacks 10 | . 6 . 4 . Successful 3 | . 3 . . . Failed 7 | . 3 . 4 . Catastrophic . | . . . . . Database Lockouts . | . . . . . Manual . | . . . . . Terminals 5 | . 3 . 2 . Fabricators . | . . . . . Repair Stations . | . . . . . Recycling Units 5 | . 3 . 2 . Scanalyzers . | . . . . . Garrison Access . | . . . . . Terminal Hacks 1 | . 1 . . . Robot Analysis 1 | . 1 . . . Fabricator Hacks . | . . . . . Repair Station Hacks . | . . . . . Recycling Unit Hacks 2 | . 2 . . . Retrieve Components 2 | . 2 . . . Scanalyzer . | . . . . . Garrison Access Hacks . | . . . . . Unauthorized Hacks . | . . . . . Terminals . | . . . . . Fabricators . | . . . . . Repair Stations . | . . . . . Recycling Units . | . . . . . Scanalyzers . | . . . . . Garrison Access . | . . . . . Data Cores Recovered . | . . . . . Used . | . . . . . Hacking Detections 4 | . 2 . 2 . Full Trace Events 1 | . . . 1 . Feedback Events . | . . . . . Feedback Blocked . | . . . . . Robot Schematics Acquired . | . . . . . Robots Built . | . . . . . Authchips . | . . . . . Time . | . . . . . Total Robot Build Rating . | . . . . . Part Schematics Acquired . | . . . . . Parts Built . | . . . . . Authchips . | . . . . . Time . | . . . . . Total Part Build Rating . | . . . . . Parts Repaired . | . . . . . Time . | . . . . . Parts Recycled . | . . . . . Recycled Matter . | . . . . . Retrieved Matter . | . . . . . Retrieved Components 1 | . 1 . . . Parts Scanalyzed . | . . . . . Part Schematics Acquired . | . . . . . Parts Damaged . | . . . . . Bothacking | -11 -10 -10 -9 -8 ------------ Run | Yrd Mat Min Mat Mat Used RIF Installer . | . . . . . Robots Hacked . | . . . . . Non-combat . | . . . . . Combat . | . . . . . Robot Hacks Applied . | . . . . . Relay Couplers Released . | . . . . . Fabnet Peak Effective % . | . . . . . Robots Rewired . | . . . . . Allies Hacked . | . . . . . Hacks Repelled . | . . . . . Allies | -11 -10 -10 -9 -8 -------- Run | Yrd Mat Min Mat Mat Total Allies 2 | . . 2 . . Largest Group 2 | . . 2 2 1 Highest-Rated Group 45 | . . 45 45 31 Highest-Rated Ally 31 | . . 31 31 31 Total Orders . | . . . . . Ally Attacks 16 | . . . 5 11 Total Damage 235 | . . . 64 171 Kills 4 | . . . 2 2 Allies Corrupted . | . . . . . Allies Melted . | . . . . . Intel | -11 -10 -10 -9 -8 ------- Run | Yrd Mat Min Mat Mat Robot Analysis Total 1 | . 1 . . . Derelict Logs Recovered 1 | . . 1 . . Drone Launches . | . . . . . Drone Recoveries . | . . . . . Exploration | -11 -10 -10 -9 -8 ------------- Run | Yrd Mat Min Mat Mat Turns Passed 1300 | 94 205 473 220 308 Spaces Moved 684 | 54 105 273 130 122 Core 6 | 6 . . . . Treads 599 | 48 105 273 51 122 Legs 79 | . . . 79 . Wheels . | . . . . . Hover . | . . . . . Flight . | . . . . . Fastest Speed 50 | 50 160 160 120 160 Average Speed 154 | 147 160 160 136 160 Slowest Speed 190 | 160 160 160 190 160 Overloaded Moves . | . . . . . Propulsion Burnouts . | . . . . . Robots Hopped . | . . . . . Cave-ins Triggered . | . . . . . Exploration Rate (%) 26 | 5 26 72 18 13 Regions Visited 4 Branch Regions 1 Pre-discovered Areas . | . . . . . Known Exits Taken . | . . . . . Unknown Exits Taken 4 | 1 1 1 1 . Scrap Searched . | . . . . . Spaces Dug . | . . . . . Terrain Destroyed . | . . . . . Melee . | . . . . . Projectile . | . . . . . AOE . | . . . . . Terrain Rammed . | . . . . . Walls Destroyed . | . . . . . Machines Disabled . | . . . . . Actions | -11 -10 -10 -9 -8 --------- Run | Yrd Mat Min Mat Mat Total 870 | 68 140 289 172 201 Wait 90 | . 27 6 14 43 Move 680 | 53 104 272 129 122 Hop . | . . . . . Pick Up 32 | 10 4 . 10 8 Fast Attach 1 | . 1 . . . Attach 12 | 5 . . 4 3 Detach . | . . . . . Swap 5 | . 1 . 4 . Drop 10 | . 1 . 8 1 Fire 36 | . . 10 2 24 Melee . | . . . . . Ram . | . . . . . Kick . | . . . . . Crush 4 | . 2 1 1 . Escape Stasis . | . . . . . Rewire . | . . . . . Trap . | . . . . . Miscellaneous . | . . . . . Route ------- -11/Scrapyard -10/Materials -10/Mines -9/Materials (discovered 2 exits: [*Mat] / Min) -8/Materials History --------- Turn | Location | Event 16 | -11/Scrapyard | Discovered new exit (range 15) 95 | -11/Scrapyard | Entered Materials 256 | -10/Materials | Discovered new exit (range 14) 300 | -10/Materials | Entered Mines 301 | -10/Mines | Build established: Mutant 386 | -10/Mines | Assembled infested the area 391 | -10/Mines | Assisted by a Guerilla fighting off Assembled 601 | -10/Mines | Learned location of 1 exit from Materials 760 | -10/Mines | Discovered new exit (range 8) 773 | -10/Mines | Entered Materials 773 | -9/Materials | Accompanied by 2 allies 773 | -9/Materials | Evolved 2 slots: Propulsion x2 774 | -9/Materials | Identified exit to Mines 778 | -9/Materials | Led the pair of lost Derelicts to an unsafe place 974 | -9/Materials | Discovered new exit (range 10) 993 | -9/Materials | Entered another Materials area 993 | -8/Materials | Accompanied by 1 ally 993 | -8/Materials | Evolved 2 slots: Utility x1, Weapon x1 1279 | -8/Materials | Build established: Skirmisher 1301 | -8/Materials | Self-destructed Last Messages --------------- 01258_ Terminal disabled. 01262_ U-05 Engineer destroyed. 01277_ G-50 Soldier destroyed. 01280_ Overheating: System interference. 01280_ Signal Interpreter temporarily disabled. 01280_ Sensor Array temporarily disabled. 01280_ Signal Interpreter temporarily disabled. 01282_ Overheating: Lgt. Treads damaged (-12). 01282_ Critical hit (Burn: +37). 01285_ Lgt. Treads destroyed. 01286_ Critical hit (Burn: +37). 01288_ W-25 Informer sends out distress signal. 01288_ U-05 Engineer builds a Door. 01288_ Critical hit (Burn: +37). 01291_ Power failure, Ion Engine shutdown. 01292_ Lgt. Treads destroyed. 01295_ Overheating: Sensor Array damaged (-12). 01295_ Overheating: Aluminum Leg damaged (-36). 01296_ Beam Cannon destroyed. 01301_ Aluminum Leg destroyed. Map ----- +----------------------------------------------------+ | | | | | | | ?????????????????????????????????????????????????? | | ?????????????????????????????????????????????????? | | ?????????????????????????????????????????????????? | | ?????????????????????????????????????????????????? | | ?????????????????????????????????????????????????? | | ?????????????????????????????????????????????????? | | ?????????????????????????????????????????????????? | | ?????????????????????????????????????????????????? | | ?????????????????????????????????????????????????? | | ?????????????????????????????????????????????????? | | ?????????????????????????????????????????????????? | | ?????????????????##+##???????????????????????????? | | ######???????????# #???????????????????????????? | | #??????????## #???????????????????????????? | | #??????????? #???????????????????????????? | | #???????????# +???????????????????????????? | | ######???????????# #???????????????????????????? | | ?????????????????# #???????????????????????????? | | ???############### #?#####?????????????????????? | | #### % # ### #?????????????????????? | | [%+ [! % % # /w #?????????????????????? | | #### !%! """ # ###g #?????????????????????? | | ???# "" "" """ / #?#%@ #?????????????????????? | | ???# ""S"" """ # #?#ggg#?????????????????????? | | ???# """" # #?# %g#?????????????????????? | | ???####### ####### #?# ! #?????????????????????? | | ?????????###????# ###a##?????????????????????? | | ????????????????# ??????????????????????? | | ????????????????# T a ??????????????????????? | | ????????????????# ??????????????????????? | | ????????????????# ######?????????????????????? | | ????????????????#######??????????????????????????? | | ?????????????????????????????????????????????????? | | ?????????????????????????????????????????????????? | | ?????????????????????????????????????????????????? | | ?????????????????????????????????????????????????? | | ?????????????????????????????????????????????????? | | ?????????????????????????????????????????????????? | | ?????????????????????????????????????????????????? | | ?????????????????????????????????????????????????? | | ?????????????????????????????????????????????????? | | ?????????????????????????????????????????????????? | | ?????????????????????????????????????????????????? | | ?????????????????????????????????????????????????? | | ?????????????????????????????????????????????????? | | ?????????????????????????????????????????????????? | | ?????????????????????????????????????????????????? | +----------------------------------------------------+ Best States ------------- Heat Dissipation 31 Energy Generation 10 Energy Capacity 250 Matter Stores 300 Matter Capacity 300 Sight Range 16 Robot Scan Range 14 Terrain Scan Density 10 Evasion (%) 55 Recoil Reduction 2 Item Schematics ----------------- None Robot Schematics ------------------ None Fabricated ------------ Nothing Alien Tech Used ----------------- None Achievements -------------- None Challenges ------------ None Game ------ Seed NavigationGodMinigun Manual? 0 Play Time 00:13:23 Cumulative 19.8 hours Start 2024.07.05 @ 18:26:18 End 2024.07.05 @ 18:45:08 Sessions 1 Manual Loads 0 Difficulty Rogue Special Mode None Game No. 42 Rogue 42 Adventurer 0 Explorer 0 Win Type - Total 0 Types 0/0/0/0/0/0/0/0/0 Lore% 18 Gallery% 24 Achievement% 17 Wizard Run 0 Options --------- Layout 1 ASCII 0 Keyboard 0 Movement Mouse Keybinds 0 Fullscreen 1 Font 24/Smallcaps Map View 50x35 Zoom Use 0% Tactical HUD 1 Map Filters NONE Filters NONE Steam 1 RUN: 55ff6539-07b0-475d-aee9-e47e8211d1d8